fUST/lending_fUST_20250627
["ID","MTS","AMOUNT","RATE_DAILY","PERIOD"]
[368089066,1751021444471,-413.49062139,0.0002,2]
[368089067,1751021444481,-1058.86,0.0002,2]
[368089068,1751021444491,-1684.88,0.0002,2]
[368089069,1751021444501,-492.5,0.0002,2]
[368089070,1751021444512,-512.01165379,0.0002,2]
[368089071,1751021444522,-1560.49903046,0.0002,2]
[368089072,1751021444711,-1902.99096954,0.0002,2]
[368089073,1751021444720,-460.0,0.0002,2]
[368089074,1751021444729,-460.0,0.0002,2]
[368089075,1751021444739,-225.82096328,0.0002,2]
[368089076,1751021444747,-7548.22,0.0002,2]
[368089077,1751021444757,-763.56,0.0002,2]
[368089078,1751021444766,-4404.44,0.0002,2]
[368089079,1751021444775,-460.0,0.0002,2]
[368089080,1751021444785,-1750.76,0.0002,2]
[368089081,1751021444795,-460.0,0.0002,2]
[368089082,1751021444805,-778.85,0.0002,2]
[368089083,1751021444814,-460.0,0.0002,2]
[368089084,1751021444824,-713.95,0.0002,2]
[368089085,1751021444833,-460.0,0.0002,2]
[368089086,1751021444842,-460.0,0.0002,2]
[368089087,1751021444851,-5000.0,0.00020009,2]
[368089088,1751021444861,-152.61247216,0.00020009,2]
[368089089,1751021444871,-25000.0,0.00020009,2]
[368089090,1751021444880,-957.77124259,0.00020011,2]
[368089091,1751021444889,-213.75309343,0.00020052,2]
[368089092,1751021444899,-847.04181546,0.00020052,2]
[368089093,1751021444908,-836.98798914,0.00020052,2]
[368089094,1751021444918,-160.0,0.00020052,2]
[368089095,1751021444927,-214.91804724,0.00020052,2]
[368089096,1751021444937,-160.0,0.00020052,2]
[368089097,1751021444946,-12562.41216491,0.00020052,2]
[368089098,1751021444955,-230.26210603,0.00020052,2]
[368089099,1751021444965,-160.0,0.00020052,2]
[368089100,1751021444974,-160.0,0.00020052,2]
[368089101,1751021444983,-160.0,0.00020052,2]
[368089102,1751021444994,-160.0,0.00020052,2]
[368089103,1751021445004,-160.0,0.00020052,2]
[368089104,1751021445013,-160.0,0.00020052,2]
[368089105,1751021445022,-524.32400359,0.00020053,2]
[368089106,1751021445031,-993.20877856,0.00020066,2]
[368089107,1751021445041,-1374.92542195,0.00020075,2]
[368089108,1751021445050,-10461.89899176,0.00020107,2]
[368089109,1751021445060,-1029.95750337,0.00020121,2]
[368089110,1751021445069,-1044.0,0.00020154,2]
[368089111,1751021445078,-1068.065931,0.00020176,2]
[368089112,1751021445087,-1044.0,0.00020206,2]
[368089113,1751021445096,-1000.0,0.00020218,2]
[368089114,1751021445105,-1000.0,0.00020218,2]
[368089115,1751021445117,-1000.0,0.00020229,2]
[368089116,1751021445248,-1107.58437044,0.00020231,2]
[368089117,1751021445263,-1000.0,0.00020232,2]
[368089118,1751021445272,-1000.0,0.00020266,2]
[368089119,1751021445281,-1000.0,0.00020269,2]
[368089120,1751021445290,-460.0,0.00020273,2]
[368089121,1751021445299,-460.0,0.00020273,2]
[368089122,1751021445309,-588.06412611,0.00020273,2]
[368089123,1751021445319,-460.0,0.00020273,2]
[368089124,1751021445329,-918.35,0.00020273,2]
[368089125,1751021445338,-460.0,0.00020273,2]
[368089126,1751021445347,-460.0,0.00020273,2]
[368089127,1751021445357,-460.0,0.00020273,2]
[368089128,1751021445367,-833.27,0.00020273,2]
[368089129,1751021445376,-460.0,0.00020273,2]
[368089130,1751021445385,-460.0,0.00020273,2]
[368089131,1751021445394,-460.0,0.00020273,2]
[368089132,1751021445403,-460.0,0.00020273,2]
[368089133,1751021445412,-1801.55,0.00020273,2]
[368089134,1751021445423,-460.0,0.00020273,2]
[368089135,1751021445433,-2389.41,0.00020273,2]
[368089136,1751021445443,-460.0,0.00020273,2]
[368089137,1751021445452,-573.14,0.00020273,2]
[368089138,1751021445461,-2876.33,0.00020273,2]
[368089139,1751021445470,-460.0,0.00020273,2]
[368089140,1751021445479,-1082.4,0.00020273,2]
[368089141,1751021445489,-727.51,0.00020273,2]
[368089142,1751021445498,-460.0,0.00020273,2]
[368089143,1751021445507,-899.43,0.00020273,2]
[368089144,1751021445516,-569.23,0.00020273,2]
[368089145,1751021445525,-460.0,0.00020273,2]
[368089146,1751021445534,-650.41,0.00020273,2]
[368089147,1751021445543,-2029.29,0.00020273,2]
[368089148,1751021445552,-1426.62,0.00020273,2]
[368089149,1751021445561,-659.85,0.00020273,2]
[368089150,1751021445570,-460.0,0.00020273,2]
[368089151,1751021445580,-1329.43,0.00020273,2]
[368089152,1751021445588,-460.0,0.00020273,2]
[368089153,1751021445597,-863.05,0.00020273,2]
[368089154,1751021445607,-839.87,0.00020273,2]
[368089155,1751021445616,-1276.34,0.00020273,2]
[368089156,1751021445625,-4767.51,0.00020273,2]
[368089157,1751021445634,-460.0,0.00020273,2]
[368089158,1751021445643,-529.46,0.00020273,2]
[368089159,1751021445653,-2556.07,0.00020273,2]
[368089160,1751021445663,-490.37,0.00020273,2]
[368089161,1751021445672,-6190.04,0.00020273,2]
[368089162,1751021445681,-460.0,0.00020273,2]
[368089163,1751021445690,-695.22,0.00020273,2]
[368089164,1751021445700,-769.42,0.00020273,2]
[368089165,1751021445709,-460.0,0.00020273,2]
[368089166,1751021445718,-3632.55,0.00020273,2]
[368089167,1751021445727,-1058.86,0.00020273,2]
[368089168,1751021445736,-1684.88,0.00020273,2]
[368089169,1751021445746,-492.5,0.00020273,2]
[368089170,1751021445755,-3463.49,0.00020273,2]
[368089171,1751021445764,-165.05637463,0.00020273,2]
[368089172,1751021445773,-460.0,0.00020273,2]
[368089173,1751021445782,-7548.22,0.00020273,2]
[368089174,1751021445792,-763.56,0.00020273,2]
[368089175,1751021445801,-4404.44,0.00020273,2]
[368089176,1751021445811,-1750.76,0.00020273,2]
[368089177,1751021445820,-460.0,0.00020273,2]
[368089178,1751021445829,-778.85,0.00020273,2]
[368089179,1751021445838,-460.0,0.00020273,2]
[368089180,1751021445848,-713.95,0.00020273,2]
[368089181,1751021445858,-460.0,0.00020273,2]
[368089182,1751021445868,-460.0,0.00020273,2]
[368089183,1751021445877,-1148.56499215,0.00020286,2]
[368089184,1751021445886,-1044.0,0.00020292,2]
[368089185,1751021445895,-847.04181546,0.00020314,3]
[368089186,1751021445905,-12562.41216491,0.00020314,3]
[368089187,1751021445914,-160.0,0.00020314,3]
[368089188,1751021445923,-524.32400359,0.00020314,3]
[368089189,1751021445932,-213.75309343,0.00020314,3]
[368089190,1751021445942,-12516.16065975,0.00020342,2]
[368089191,1751021445951,-10461.89899176,0.00020348,3]
[368089192,1751021445962,-2433.97821683,0.00020385,2]
[368089193,1751021445971,-827.23823491,0.00020401,2]
[368089194,1751021445982,-19559.47412954,0.0002052,2]
[368089195,1751021445992,-151.0,0.00020527,2]
[368089196,1751021446001,-151.0,0.00020527,2]
[368089197,1751021446011,-451.32,0.00020538,3]
[368089198,1751021446021,-690.38,0.00020538,3]
[368089199,1751021446031,-983.92,0.00020538,3]
[368089200,1751021446040,-491.96,0.00020538,3]
[368089201,1751021446050,-575.0,0.00020538,3]
[368089202,1751021446059,-460.0,0.00020547,2]
[368089203,1751021446067,-460.0,0.00020547,2]
[368089204,1751021446077,-918.35,0.00020547,2]
[368089205,1751021446086,-460.0,0.00020547,2]
[368089206,1751021446095,-460.0,0.00020547,2]
[368089207,1751021446105,-460.0,0.00020547,2]
[368089208,1751021446114,-833.27,0.00020547,2]
[368089209,1751021446123,-460.0,0.00020547,2]
[368089210,1751021446132,-460.0,0.00020547,2]
[368089211,1751021446141,-460.0,0.00020547,2]
[368089212,1751021446151,-1801.55,0.00020547,2]
[368089213,1751021446160,-460.0,0.00020547,2]
[368089214,1751021446170,-2389.41,0.00020547,2]
[368089215,1751021446178,-460.0,0.00020547,2]
[368089216,1751021446188,-573.14,0.00020547,2]
[368089217,1751021446197,-2876.33,0.00020547,2]
[368089218,1751021446206,-460.0,0.00020547,2]
[368089219,1751021446215,-1082.4,0.00020547,2]
[368089220,1751021446225,-727.51,0.00020547,2]
[368089221,1751021446234,-460.0,0.00020547,2]
[368089222,1751021446244,-899.43,0.00020547,2]
[368089223,1751021446254,-460.0,0.00020547,2]
[368089224,1751021446265,-650.41,0.00020547,2]
[368089225,1751021446275,-2029.29,0.00020547,2]
[368089226,1751021446284,-1426.62,0.00020547,2]
[368089227,1751021446293,-659.85,0.00020547,2]
[368089228,1751021446303,-460.0,0.00020547,2]
[368089229,1751021446312,-1329.43,0.00020547,2]
[368089230,1751021446321,-460.0,0.00020547,2]
[368089231,1751021446332,-863.05,0.00020547,2]
[368089232,1751021446341,-839.87,0.00020547,2]
[368089233,1751021446351,-1276.34,0.00020547,2]
[368089234,1751021446360,-4767.51,0.00020547,2]
[368089235,1751021446369,-460.0,0.00020547,2]
[368089236,1751021446378,-529.46,0.00020547,2]
[368089237,1751021446387,-2556.07,0.00020547,2]
[368089238,1751021446396,-490.37,0.00020547,2]
[368089239,1751021446407,-6190.04,0.00020547,2]
[368089240,1751021446417,-460.0,0.00020547,2]
[368089241,1751021446428,-695.22,0.00020547,2]
[368089242,1751021446437,-769.42,0.00020547,2]
[368089243,1751021446446,-460.0,0.00020547,2]
[368089244,1751021446456,-3632.55,0.00020547,2]
[368089245,1751021446465,-1058.86,0.00020547,2]
[368089246,1751021446478,-1684.88,0.00020547,2]
[368089247,1751021446492,-492.5,0.00020547,2]
[368089248,1751021446504,-3463.49,0.00020547,2]
[368089249,1751021446517,-460.0,0.00020547,2]
[368089250,1751021446529,-7548.22,0.00020547,2]
[368089251,1751021446540,-763.56,0.00020547,2]
[368089252,1751021446553,-4404.44,0.00020547,2]
[368089253,1751021446565,-1750.76,0.00020547,2]
[368089254,1751021446577,-460.0,0.00020547,2]
[368089255,1751021446588,-460.0,0.00020547,2]
[368089256,1751021446601,-778.85,0.00020547,2]
[368089257,1751021446614,-713.95,0.00020547,2]
[368089258,1751021446626,-460.0,0.00020547,2]
[368089259,1751021446639,-5000.0,0.00020557,2]
[368089260,1751021446653,-25000.0,0.00020557,2]
[368089261,1751021446666,-10461.89899176,0.0002059,3]
[368089262,1751021446676,-4662.34,0.000206,2]
[368089263,1751021446689,-950.08815557,0.00020609,2]
[368089264,1751021446701,-1680.0,0.00020672,2]
[368089265,1751021446712,-151.640356,0.00020672,2]
[368089266,1751021446724,-151.0,0.00020672,2]
[368089267,1751021446737,-151.0,0.00020672,2]
[368089268,1751021446749,-151.0,0.00020672,2]
[368089269,1751021446761,-420.0,0.00020674,2]
[368089270,1751021446772,-168.0,0.00020674,2]
[368089271,1751021446782,-151.0,0.000207,4]
[368089272,1751021446795,-151.0,0.000207,3]
[368089273,1751021446806,-151.0,0.000207,4]
[368089274,1751021446818,-204.30024252,0.000207,2]
[368089275,1751021446830,-168.42003543,0.00020721,2]
[368089276,1751021446842,-1237.499,0.00020728,2]
[368089277,1751021446855,-908.63447478,0.00020763,2]
[368089278,1751021446868,-177.858,0.00020764,2]
[368089279,1751021446880,-1500.0,0.00020765,2]
[368089280,1751021446893,-502.16347564,0.0002078,2]
[368089281,1751021446906,-1500.0,0.00020814,2]
[368089282,1751021446920,-151.0,0.00020814,2]
[368089283,1751021446930,-1500.0,0.00020817,2]
[368089284,1751021446940,-151.0,0.00020821,2]
[368089285,1751021446951,-151.0,0.00020821,2]
[368089286,1751021446961,-151.575806,0.00020821,2]
[368089287,1751021446972,-151.0,0.00020821,2]
[368089288,1751021446985,-460.0,0.00020821,2]
[368089289,1751021446998,-151.0,0.00020821,2]
[368089290,1751021447011,-460.0,0.00020821,2]
[368089291,1751021447023,-918.35,0.00020821,2]
[368089292,1751021447034,-460.0,0.00020821,2]
[368089293,1751021447044,-460.0,0.00020821,2]
[368089294,1751021447055,-460.0,0.00020821,2]
[368089295,1751021447067,-833.27,0.00020821,2]
[368089296,1751021447078,-460.0,0.00020821,2]
[368089297,1751021447089,-460.0,0.00020821,2]
[368089298,1751021447100,-460.0,0.00020821,2]
[368089299,1751021447111,-1801.55,0.00020821,2]
[368089300,1751021447122,-460.0,0.00020821,2]
[368089301,1751021447133,-2389.41,0.00020821,2]
[368089302,1751021447143,-460.0,0.00020821,2]
[368089303,1751021447155,-573.14,0.00020821,2]
[368089304,1751021447165,-1673.71831143,0.00020821,2]
[368089305,1751021447181,-1202.61168857,0.00020821,2]
[368089306,1751021447192,-460.0,0.00020821,2]
[368089307,1751021447203,-1082.4,0.00020821,2]
[368089308,1751021447214,-727.51,0.00020821,2]
[368089309,1751021447225,-460.0,0.00020821,2]
[368089310,1751021447236,-899.43,0.00020821,2]
[368089311,1751021447247,-460.0,0.00020821,2]
[368089312,1751021447261,-650.41,0.00020821,2]
[368089313,1751021447272,-2029.29,0.00020821,2]
[368089314,1751021447282,-1426.62,0.00020821,2]
[368089315,1751021447292,-659.85,0.00020821,2]
[368089316,1751021447304,-460.0,0.00020821,2]
[368089317,1751021447315,-1329.43,0.00020821,2]
[368089318,1751021447326,-460.0,0.00020821,2]
[368089319,1751021447337,-863.05,0.00020821,2]
[368089320,1751021447347,-839.87,0.00020821,2]
[368089321,1751021447359,-1276.34,0.00020821,2]
[368089322,1751021447370,-4767.51,0.00020821,2]
[368089323,1751021447380,-460.0,0.00020821,2]
[368089324,1751021447391,-529.46,0.00020821,2]
[368089325,1751021447401,-2556.07,0.00020821,2]
[368089326,1751021447412,-490.37,0.00020821,2]
[368089327,1751021447422,-6190.04,0.00020821,2]
[368089328,1751021447434,-474.83927704,0.00020821,2]
[368089329,1751021447444,-695.22,0.00020821,2]
[368089330,1751021447455,-769.42,0.00020821,2]
[368089331,1751021447466,-460.0,0.00020821,2]
[368089332,1751021447476,-3632.55,0.00020821,2]
[368089333,1751021447487,-1058.86,0.00020821,2]
[368089334,1751021447498,-1684.88,0.00020821,2]
[368089335,1751021447508,-492.5,0.00020821,2]
[368089336,1751021447520,-3463.49,0.00020821,2]
[368089337,1751021447530,-460.0,0.00020821,2]
[368089338,1751021447541,-7548.22,0.00020821,2]
[368089339,1751021447552,-763.56,0.00020821,2]
[368089340,1751021447564,-4404.44,0.00020821,2]
[368089341,1751021447574,-1750.76,0.00020821,2]
[368089342,1751021447584,-460.0,0.00020821,2]
[368089343,1751021447595,-460.0,0.00020821,2]
[368089344,1751021447606,-778.85,0.00020821,2]
[368089345,1751021447617,-713.95,0.00020821,2]
[368089346,1751021447628,-765.08520152,0.00020821,2]
[368089347,1751021447638,-215.0738,0.0002083,2]
[368089348,1751021447649,-10461.89899176,0.00020831,4]
[368089349,1751021447660,-156.2027498,0.00020849,2]
[368089350,1751021447671,-153.0,0.00020849,2]
[368089351,1751021447682,-153.0,0.00020849,2]
[368089352,1751021447693,-1133.333557,0.00020941,4]
[368089353,1751021447704,-153.012771,0.00020941,2]
[368089354,1751021447715,-151.0,0.00020941,2]
[368089355,1751021447724,-151.0,0.00020941,2]
[368089356,1751021447733,-151.0,0.00020941,2]
[368089357,1751021447743,-151.0,0.00020941,2]
[368089358,1751021447752,-151.0,0.00020941,2]
[368089359,1751021447761,-151.0,0.00020941,2]
[368089360,1751021447770,-151.0,0.00020941,2]
[368089361,1751021447779,-151.0,0.00020941,2]
[368089362,1751021447789,-151.0,0.00020941,2]
[368089363,1751021447800,-230.07848,0.00020941,2]
[368089364,1751021447809,-2433.97821683,0.00020943,2]
[368089365,1751021447818,-151.0,0.00021,4]
[368089366,1751021447828,-732.2294798,0.00021014,2]
[368089367,1751021447837,-200.0,0.0002102,2]
[368089368,1751021447847,-10461.89899176,0.00021072,4]
[368089369,1751021447856,-370.0274796,0.00021077,2]
[368089370,1751021447865,-151.0,0.00021095,2]
[368089371,1751021447876,-151.0,0.00021095,2]
[368089372,1751021447886,-460.0,0.00021095,2]
[368089373,1751021447895,-151.0,0.00021095,2]
[368089374,1751021447905,-209.855646,0.00021095,2]
[368089375,1751021448093,-460.0,0.00021095,2]
[368089376,1751021448112,-918.35,0.00021095,2]
[368089377,1751021448125,-151.0,0.00021095,2]
[368089378,1751021448135,-151.0,0.00021095,2]
[368089379,1751021448144,-460.0,0.00021095,2]
[368089380,1751021448154,-460.0,0.00021095,2]
[368089381,1751021448163,-460.0,0.00021095,2]
[368089382,1751021448173,-833.27,0.00021095,2]
[368089383,1751021448182,-152.145735,0.00021095,2]
[368089384,1751021448191,-460.0,0.00021095,2]
[368089385,1751021448200,-206.74,0.00021095,2]
[368089386,1751021448209,-460.0,0.00021095,2]
[368089387,1751021448219,-252.52113,0.00021095,2]
[368089388,1751021448229,-1801.55,0.00021095,2]
[368089389,1751021448239,-460.0,0.00021095,2]
[368089390,1751021448248,-169.975662,0.00021095,2]
[368089391,1751021448262,-169.975662,0.00021095,2]
[368089392,1751021448271,-151.0,0.00021095,2]
[368089393,1751021448281,-2389.41,0.00021095,2]
[368089394,1751021448290,-460.0,0.00021095,2]
[368089395,1751021448301,-151.0,0.00021095,2]
[368089396,1751021448310,-154.284296,0.00021095,2]
[368089397,1751021448320,-154.284296,0.00021095,2]
[368089398,1751021448330,-573.14,0.00021095,2]
[368089399,1751021448340,-2876.33,0.00021095,2]
[368089400,1751021448350,-460.0,0.00021095,2]
[368089401,1751021448359,-1082.4,0.00021095,2]
[368089402,1751021448369,-727.51,0.00021095,2]
[368089403,1751021448378,-151.0,0.00021095,2]
[368089404,1751021448387,-460.0,0.00021095,2]
[368089405,1751021448396,-899.43,0.00021095,2]
[368089406,1751021448405,-460.0,0.00021095,2]
[368089407,1751021448414,-650.41,0.00021095,2]
[368089408,1751021448423,-2029.29,0.00021095,2]
[368089409,1751021448433,-1426.62,0.00021095,2]
[368089410,1751021448442,-659.85,0.00021095,2]
[368089411,1751021448452,-460.0,0.00021095,2]
[368089412,1751021448462,-1329.43,0.00021095,2]
[368089413,1751021448471,-460.0,0.00021095,2]
[368089414,1751021448481,-863.05,0.00021095,2]
[368089415,1751021448490,-839.87,0.00021095,2]
[368089416,1751021448500,-1276.34,0.00021095,2]
[368089417,1751021448510,-4767.51,0.00021095,2]
[368089418,1751021448520,-529.46,0.00021095,2]
[368089419,1751021448530,-2556.07,0.00021095,2]
[368089420,1751021448541,-490.37,0.00021095,2]
[368089421,1751021448551,-6190.04,0.00021095,2]
[368089422,1751021448560,-695.22,0.00021095,2]
[368089423,1751021448570,-1571.309851,0.00021095,2]
[368089424,1751021448580,-1571.309851,0.00021095,2]
[368089425,1751021448589,-769.42,0.00021095,2]
[368089426,1751021448598,-460.0,0.00021095,2]
[368089427,1751021448608,-3632.55,0.00021095,2]
[368089428,1751021448618,-1058.86,0.00021095,2]
[368089429,1751021448628,-1684.88,0.00021095,2]
[368089430,1751021448638,-492.5,0.00021095,2]
[368089431,1751021448647,-3463.49,0.00021095,2]
[368089432,1751021448657,-460.0,0.00021095,2]
[368089433,1751021448667,-7548.22,0.00021095,2]
[368089434,1751021448677,-763.56,0.00021095,2]
[368089435,1751021448686,-4404.44,0.00021095,2]
[368089436,1751021448696,-1750.76,0.00021095,2]
[368089437,1751021448706,-460.0,0.00021095,2]
[368089438,1751021448715,-460.0,0.00021095,2]
[368089439,1751021448726,-778.85,0.00021095,2]
[368089440,1751021448736,-366.1147399,0.00021096,2]
[368089441,1751021448745,-731.804695,0.00021096,2]
[368089442,1751021448755,-5000.0,0.00021105,2]
[368089443,1751021448764,-151.0,0.00021141,2]
[368089444,1751021448774,-210.675834,0.00021141,2]
[368089445,1751021448783,-151.0,0.00021141,2]
[368089446,1751021448793,-151.893006,0.00021141,2]
[368089447,1751021448803,-151.0,0.00021141,2]
[368089448,1751021448813,-188.575506,0.00021141,2]
[368089449,1751021448823,-229.226234,0.00021141,2]
[368089450,1751021448833,-151.0,0.00021141,2]
[368089451,1751021448843,-188.575506,0.00021141,2]
[368089452,1751021448853,-151.0,0.00021141,2]
[368089453,1751021448863,-151.985088,0.00021141,2]
[368089454,1751021448873,-151.0,0.00021141,2]
[368089455,1751021448883,-164.180254,0.00021141,2]
[368089456,1751021448892,-164.180254,0.00021141,2]
[368089457,1751021448902,-224.219247,0.00021141,2]
[368089458,1751021448911,-224.219247,0.00021141,2]
[368089459,1751021448920,-1084.045883,0.00021141,2]
[368089460,1751021448930,-1084.045883,0.00021141,2]
[368089461,1751021448940,-320.068293,0.00021141,2]
[368089462,1751021448949,-320.068293,0.00021141,2]
[368089463,1751021448959,-253.878886,0.00021141,2]
[368089464,1751021448968,-151.0,0.000212,4]
[368089465,1751021448977,-2000.0,0.00021313,2]
[368089466,1751021448987,-10461.89899176,0.00021314,5]
[368089467,1751021448997,-366.1147399,0.00021354,2]
[368089468,1751021449006,-500.0,0.00021356,2]
[368089469,1751021449015,-305.39710031,0.00021362,2]
[368089470,1751021449025,-2000.0,0.00021365,2]
[368089471,1751021449035,-151.0,0.00021369,2]
[368089472,1751021449045,-151.0,0.00021369,2]
[368089473,1751021449055,-278.72205502,0.00021369,2]
[368089474,1751021449064,-460.0,0.00021369,2]
[368089475,1751021449074,-460.0,0.00021369,2]
[368089476,1751021449083,-918.35,0.00021369,2]
[368089477,1751021449093,-460.0,0.00021369,2]
[368089478,1751021449102,-449.17253037,0.00021369,2]
[368089479,1751021449112,-460.0,0.00021369,2]
[368089480,1751021449122,-460.0,0.00021369,2]
[368089481,1751021449134,-833.27,0.00021369,2]
[368089482,1751021449144,-460.0,0.00021369,2]
[368089483,1751021449153,-460.0,0.00021369,2]
[368089484,1751021449163,-1801.55,0.00021369,2]
[368089485,1751021449172,-460.0,0.00021369,2]
[368089486,1751021449182,-2389.41,0.00021369,2]
[368089487,1751021449191,-460.0,0.00021369,2]
[368089488,1751021449201,-573.14,0.00021369,2]
[368089489,1751021449211,-2876.33,0.00021369,2]
[368089490,1751021449220,-460.0,0.00021369,2]
[368089491,1751021449229,-1082.4,0.00021369,2]
[368089492,1751021449239,-727.51,0.00021369,2]
[368089493,1751021449248,-460.0,0.00021369,2]
[368089494,1751021449261,-899.43,0.00021369,2]
[368089495,1751021449270,-460.0,0.00021369,2]
[368089496,1751021449279,-650.41,0.00021369,2]
[368089497,1751021449289,-2029.29,0.00021369,2]
[368089498,1751021449299,-1426.62,0.00021369,2]
[368089499,1751021449309,-659.85,0.00021369,2]
[368089500,1751021449318,-460.0,0.00021369,2]
[368089501,1751021449328,-1329.43,0.00021369,2]
[368089502,1751021449339,-460.0,0.00021369,2]
[368089503,1751021449348,-863.05,0.00021369,2]
[368089504,1751021449358,-839.87,0.00021369,2]
[368089505,1751021449367,-1276.34,0.00021369,2]
[368089506,1751021449376,-151.0,0.00021369,2]
[368089507,1751021449385,-4767.51,0.00021369,2]
[368089508,1751021449395,-529.46,0.00021369,2]
[368089509,1751021449404,-2556.07,0.00021369,2]
[368089510,1751021449414,-490.37,0.00021369,2]
[368089511,1751021449423,-6190.04,0.00021369,2]
[368089512,1751021449432,-151.0,0.00021369,2]
[368089513,1751021449441,-695.22,0.00021369,2]
[368089514,1751021449451,-769.42,0.00021369,2]
[368089515,1751021449460,-460.0,0.00021369,2]
[368089516,1751021449469,-3632.55,0.00021369,2]
[368089517,1751021449478,-1058.86,0.00021369,2]
[368089518,1751021449487,-1684.88,0.00021369,2]
[368089519,1751021449497,-492.5,0.00021369,2]
[368089520,1751021449507,-3463.49,0.00021369,2]
[368089521,1751021449517,-460.0,0.00021369,2]
[368089522,1751021449526,-151.0,0.00021369,2]
[368089523,1751021449536,-7548.22,0.00021369,2]
[368089524,1751021449546,-763.56,0.00021369,2]
[368089525,1751021449556,-4404.44,0.00021369,2]
[368089526,1751021449566,-1750.76,0.00021369,2]
[368089527,1751021449576,-460.0,0.00021369,2]
[368089528,1751021449585,-460.0,0.00021369,2]
[368089529,1751021449595,-778.85,0.00021369,2]
[368089530,1751021449604,-153.0,0.0002137,2]
[368089531,1751021449614,-153.0,0.0002137,2]
[368089532,1751021449623,-153.0,0.0002137,2]
[368089533,1751021449632,-153.0,0.0002137,2]
[368089534,1751021449642,-153.0,0.0002137,2]
[368089535,1751021449651,-153.0,0.0002137,2]
[368089536,1751021449661,-151.0,0.00021382,2]
[368089537,1751021449670,-966.0,0.00021382,2]
[368089538,1751021449679,-2161.0,0.00021382,2]
[368089539,1751021449689,-654.0,0.00021382,2]
[368089540,1751021449698,-410.338,0.00021382,2]
[368089541,1751021449708,-151.0,0.00021384,2]
[368089542,1751021449717,-192.38194,0.00021384,2]
[368089543,1751021449726,-192.38194,0.00021384,2]
[368089544,1751021449736,-157.100231,0.00021384,2]
[368089545,1751021449746,-151.0,0.00021384,2]
[368089546,1751021449756,-3509.47,0.00021396,2]
[368089547,1751021449765,-153.0,0.00021397,2]
[368089548,1751021449774,-153.0,0.00021397,2]
[368089549,1751021449783,-153.6846432,0.00021397,2]
[368089550,1751021449793,-970.0,0.00021407,2]
[368089551,1751021449802,-970.0,0.00021439,2]
[368089552,1751021449812,-12000.0,0.00021446,2]
[368089553,1751021449821,-12706.02957985,0.00021482,2]
[368089554,1751021449837,-2130.1,0.00021482,2]
[368089555,1751021450120,-345.573905,0.00019178,2]
[368089556,1751021450132,-181.086095,0.00019178,2]
[368089557,1751021450142,-526.66,0.00019452,2]
[368089558,1751021450152,-526.66,0.00019726,2]
[368089559,1751021450161,-526.66,0.0002,2]
[368089560,1751021450171,-526.66,0.00020273,2]
[368089561,1751021450181,-460.0,0.00020547,2]
[368089562,1751021450190,-526.66,0.00020547,2]
[368089563,1751021450200,-460.0,0.00020821,2]
[368089564,1751021450209,-460.0,0.00020821,2]
[368089565,1751021450218,-526.66,0.00020821,2]